[Event "*** SCC Grand Prix: Titled Tuesday Blitz"]
[Site "Chess.com"]
[Date "2020.10.13"]
[Round "9"]
[White "Gloomy_Wanderer"]
[Black "eljanov"]
[Result "1-0"]
[WhiteElo "2787"]
[BlackElo "2855"]
[TimeControl "180+1"]
[EndTime "11:44:06 PDT"]
[Termination "Gloomy_Wanderer won by resignation"]

1. d4 {[%clk 0:03:00.9]} 1... Nf6 {[%clk 0:02:59.4]} 2. Nf3 {[%clk 0:03:00.6]}
2... e6 {[%clk 0:02:58.7]} 3. c4 {[%clk 0:03:00.8]} 3... b6 {[%clk 0:02:59.1]}
4. g3 {[%clk 0:02:59.9]} 4... Bb7 {[%clk 0:02:59.4]} 5. Bg2 {[%clk 0:02:59.8]}
5... Be7 {[%clk 0:02:59.9]} 6. O-O {[%clk 0:02:59.6]} 6... O-O {[%clk
0:03:00.5]} 7. Re1 {[%clk 0:03:00.3]} 7... Ne4 {[%clk 0:02:59.8]} 8. Nfd2 {[%clk
0:02:53.8]} 8... f5 {[%clk 0:02:58.1]} 9. Qc2 {[%clk 0:02:52.6]} 9... d5 {[%clk
0:02:54.6]} 10. Nc3 {[%clk 0:02:52.6]} 10... Nc6 {[%clk 0:02:34.4]} 11. Nf3
{[%clk 0:02:33.9]} 11... Bf6 {[%clk 0:02:25.3]} 12. Rd1 {[%clk 0:02:29.4]} 12...
Kh8 {[%clk 0:02:08.3]} 13. h4 {[%clk 0:02:25.6]} 13... Ne7 {[%clk 0:02:02.6]}
14. cxd5 {[%clk 0:02:16]} 14... exd5 {[%clk 0:01:59.3]} 15. Bf4 {[%clk
0:02:14.6]} 15... Ng6 {[%clk 0:01:58.4]} 16. Be5 {[%clk 0:01:43.8]} 16... Qe7
{[%clk 0:01:21.6]} 17. Bxf6 {[%clk 0:01:34.9]} 17... Rxf6 {[%clk 0:01:21.9]} 18.
e3 {[%clk 0:01:34.9]} 18... c6 {[%clk 0:01:17.5]} 19. Ne2 {[%clk 0:01:32.4]}
19... Re8 {[%clk 0:01:14.9]} 20. Nf4 {[%clk 0:01:19.7]} 20... Nxf4 {[%clk
0:01:12.9]} 21. exf4 {[%clk 0:01:20.6]} 21... c5 {[%clk 0:01:09.3]} 22. dxc5
{[%clk 0:01:04.5]} 22... bxc5 {[%clk 0:01:08.6]} 23. Ne5 {[%clk 0:01:04.7]}
23... d4 {[%clk 0:01:06.2]} 24. Rac1 {[%clk 0:00:59.8]} 24... Rc8 {[%clk
0:00:57.9]} 25. Qa4 {[%clk 0:00:56.5]} 25... Ra6 {[%clk 0:00:53.5]} 26. Qb3
{[%clk 0:00:45.1]} 26... h6 {[%clk 0:00:43.1]} 27. h5 {[%clk 0:00:39.9]} 27...
Kh7 {[%clk 0:00:43.1]} 28. Rc2 {[%clk 0:00:28]} 28... Rb6 {[%clk 0:00:40.3]} 29.
Qa3 {[%clk 0:00:27.6]} 29... Ra6 {[%clk 0:00:38.7]} 30. Qb3 {[%clk 0:00:27.9]}
30... Rc7 {[%clk 0:00:29.1]} 31. Rdc1 {[%clk 0:00:25.9]} 31... Nf6 {[%clk
0:00:24.6]} 32. a3 {[%clk 0:00:20.6]} 32... Bxg2 {[%clk 0:00:23.6]} 33. Kxg2
{[%clk 0:00:21.5]} 33... Nxh5 {[%clk 0:00:21.8]} 34. Qd3 {[%clk 0:00:21.7]}
34... g6 {[%clk 0:00:19]} 35. Qxa6 {[%clk 0:00:21.3]} 1-0

[Event "*** SCC Grand Prix: Titled Tuesday Blitz"]
[Site "Chess.com"]
[Date "2020.10.13"]
[Round "9"]
[White "azikom"]
[Black "Alindsay211"]
[Result "0-1"]
[WhiteElo "2623"]
[BlackElo "2454"]
[TimeControl "180+1"]
[EndTime "11:44:06 PDT"]
[Termination "Alindsay211 won by resignation"]

1. e4 {[%clk 0:03:00]} 1... c5 {[%clk 0:03:00]} 2. Nc3 {[%clk 0:03:00.2]} 2...
e6 {[%clk 0:02:52.2]} 3. d3 {[%clk 0:02:59.8]} 3... d5 {[%clk 0:02:52.1]} 4.
exd5 {[%clk 0:02:57.3]} 4... exd5 {[%clk 0:02:48.2]} 5. g3 {[%clk 0:02:57.6]}
5... Nf6 {[%clk 0:02:47.1]} 6. Bg2 {[%clk 0:02:56.5]} 6... Nc6 {[%clk
0:02:44.3]} 7. Bg5 {[%clk 0:02:54.2]} 7... Be6 {[%clk 0:02:43.6]} 8. Nge2 {[%clk
0:02:53.2]} 8... Be7 {[%clk 0:02:42.1]} 9. O-O {[%clk 0:02:52.1]} 9... O-O
{[%clk 0:02:41]} 10. Nf4 {[%clk 0:02:52.5]} 10... Qd7 {[%clk 0:02:35]} 11. Re1
{[%clk 0:02:51.8]} 11... h6 {[%clk 0:02:28.6]} 12. Bxf6 {[%clk 0:02:51.3]} 12...
Bxf6 {[%clk 0:02:27.9]} 13. Nfxd5 {[%clk 0:02:51.5]} 13... Bxc3 {[%clk
0:02:18.4]} 14. Nxc3 {[%clk 0:02:49.2]} 14... Rac8 {[%clk 0:02:17.6]} 15. Rc1
{[%clk 0:02:33.6]} 15... a6 {[%clk 0:02:16]} 16. Qf3 {[%clk 0:02:32.8]} 16...
Rfd8 {[%clk 0:02:09.5]} 17. a3 {[%clk 0:02:31]} 17... b5 {[%clk 0:02:04.8]} 18.
Ne4 {[%clk 0:02:17.5]} 18... Nd4 {[%clk 0:01:55.9]} 19. Qe3 {[%clk 0:02:16.8]}
19... Bh3 {[%clk 0:01:38.2]} 20. Bh1 {[%clk 0:02:12.7]} 20... f5 {[%clk
0:01:12.3]} 21. Nc3 {[%clk 0:02:09.7]} 21... Re8 {[%clk 0:01:08.8]} 22. Qd2
{[%clk 0:02:05.6]} 22... Bg4 {[%clk 0:01:03.6]} 23. Rxe8+ {[%clk 0:01:02.8]}
23... Rxe8 {[%clk 0:01:01.7]} 24. Re1 {[%clk 0:01:03.3]} 24... Rxe1+ {[%clk
0:00:56.6]} 25. Qxe1 {[%clk 0:01:03.2]} 25... Bf3 {[%clk 0:00:53.5]} 26. Qe5
{[%clk 0:00:57.4]} 26... Bxh1 {[%clk 0:00:43.9]} 27. Kxh1 {[%clk 0:00:56.5]}
27... Nxc2 {[%clk 0:00:41.9]} 28. Nd5 {[%clk 0:00:53.4]} 28... Nd4 {[%clk
0:00:33.6]} 29. Kg2 {[%clk 0:00:53]} 29... Nc6 {[%clk 0:00:24.9]} 30. Qxf5
{[%clk 0:00:50.9]} 30... Qxf5 {[%clk 0:00:23.4]} 31. Ne7+ {[%clk 0:00:50.9]}
31... Nxe7 {[%clk 0:00:22.5]} 0-1

[Event "*** SCC Grand Prix: Titled Tuesday Blitz"]
[Site "Chess.com"]
[Date "2020.10.13"]
[Round "9"]
[White "orestn"]
[Black "shriyanasmallya"]
[Result "1-0"]
[WhiteElo "2288"]
[BlackElo "1630"]
[TimeControl "180+1"]
[EndTime "11:44:08 PDT"]
[Termination "orestn won by resignation"]

1. e4 {[%clk 0:03:00.9]} 1... e5 {[%clk 0:02:58.8]} 2. Nf3 {[%clk 0:03:00.8]}
2... Nc6 {[%clk 0:02:58.6]} 3. Bb5 {[%clk 0:03:01.2]} 3... a6 {[%clk 0:02:57.2]}
4. Ba4 {[%clk 0:03:01.1]} 4... Nge7 {[%clk 0:02:56.2]} 5. O-O {[%clk 0:03:00.9]}
5... g6 {[%clk 0:02:55.6]} 6. c3 {[%clk 0:02:59.8]} 6... Bg7 {[%clk 0:02:55.7]}
7. d3 {[%clk 0:03:00]} 7... d6 {[%clk 0:02:55.9]} 8. Re1 {[%clk 0:02:52]} 8...
Bg4 {[%clk 0:02:53.6]} 9. Nbd2 {[%clk 0:02:52.9]} 9... O-O {[%clk 0:02:51.4]}
10. h3 {[%clk 0:02:52.7]} 10... Bd7 {[%clk 0:02:49.6]} 11. Nf1 {[%clk
0:02:53.1]} 11... b5 {[%clk 0:02:47.6]} 12. Bb3 {[%clk 0:02:52.2]} 12... Be6
{[%clk 0:02:46.4]} 13. Ne3 {[%clk 0:02:46.1]} 13... Bxb3 {[%clk 0:02:44.8]} 14.
Qxb3 {[%clk 0:02:44.6]} 14... Na5 {[%clk 0:02:42.3]} 15. Qc2 {[%clk 0:02:42]}
15... f5 {[%clk 0:02:39.4]} 16. b4 {[%clk 0:02:18.4]} 16... Nac6 {[%clk
0:02:37.1]} 17. Ng5 {[%clk 0:02:16]} 17... Qd7 {[%clk 0:02:19.1]} 18. Qb3+
{[%clk 0:02:15]} 18... Kh8 {[%clk 0:01:40]} 19. Nf7+ {[%clk 0:02:12.5]} 19...
Rxf7 {[%clk 0:01:40.3]} 20. Qxf7 {[%clk 0:02:12.1]} 20... Rf8 {[%clk 0:01:40.3]}
21. Qb3 {[%clk 0:02:09.1]} 21... fxe4 {[%clk 0:01:40.3]} 22. dxe4 {[%clk
0:02:07.5]} 22... Ng8 {[%clk 0:01:31.7]} 23. Nd5 {[%clk 0:02:00.8]} 23... Nf6
{[%clk 0:01:29.2]} 24. Nxf6 {[%clk 0:01:56.8]} 24... Bxf6 {[%clk 0:01:26.5]} 25.
Be3 {[%clk 0:01:55]} 25... Bg7 {[%clk 0:01:25.1]} 26. a4 {[%clk 0:01:53.4]}
26... Ne7 {[%clk 0:01:16.2]} 27. axb5 {[%clk 0:01:49.9]} 27... axb5 {[%clk
0:01:14.5]} 28. Red1 {[%clk 0:01:42.6]} 28... Nc6 {[%clk 0:01:07.7]} 29. Qd5
{[%clk 0:01:34.4]} 29... Ne7 {[%clk 0:01:05.1]} 30. Qb7 {[%clk 0:01:33.9]} 30...
h6 {[%clk 0:00:57.8]} 31. Ra7 {[%clk 0:01:27.9]} 31... Rc8 {[%clk 0:00:51.5]}
32. Ra8 {[%clk 0:01:27.2]} 32... g5 {[%clk 0:00:48.6]} 33. Rxc8+ {[%clk
0:01:22.9]} 33... Nxc8 {[%clk 0:00:47]} 34. Ra1 {[%clk 0:01:18.6]} 34... Nb6
{[%clk 0:00:43.1]} 35. Bxb6 {[%clk 0:01:16.4]} 35... Kh7 {[%clk 0:00:36.8]} 36.
Qxc7 {[%clk 0:01:12.1]} 36... Qe6 {[%clk 0:00:31.3]} 37. Ra7 {[%clk 0:01:10.5]}
37... Qg6 {[%clk 0:00:29.4]} 38. Qf7 {[%clk 0:01:04.4]} 38... h5 {[%clk
0:00:25.9]} 39. Qxg6+ {[%clk 0:01:03.5]} 39... Kxg6 {[%clk 0:00:26.8]} 40. Be3
{[%clk 0:01:02.9]} 40... g4 {[%clk 0:00:25.7]} 41. hxg4 {[%clk 0:01:02.2]} 41...
hxg4 {[%clk 0:00:26.6]} 42. Rb7 {[%clk 0:00:59.9]} 42... Bf6 {[%clk 0:00:26.1]}
43. Rxb5 {[%clk 0:00:59.4]} 43... Bg5 {[%clk 0:00:25.3]} 44. Bxg5 {[%clk
0:00:58.4]} 44... Kxg5 {[%clk 0:00:26.2]} 45. g3 {[%clk 0:00:59.1]} 45... Kf6
{[%clk 0:00:25.1]} 46. Kf1 {[%clk 0:00:55.3]} 46... Ke6 {[%clk 0:00:25.3]} 47.
Ke2 {[%clk 0:00:55.4]} 47... Kd7 {[%clk 0:00:25.6]} 48. Rb7+ {[%clk 0:00:55.1]}
48... Kc6 {[%clk 0:00:25.6]} 49. Rg7 {[%clk 0:00:55.5]} 1-0

[Event "*** SCC Grand Prix: Titled Tuesday Blitz"]
[Site "Chess.com"]
[Date "2020.10.13"]
[Round "9"]
[White "A-S-00"]
[Black "zverr1"]
[Result "1/2-1/2"]
[WhiteElo "2266"]
[BlackElo "2397"]
[TimeControl "180+1"]
[EndTime "11:44:09 PDT"]
[Termination "Game drawn by agreement"]

1. d4 {[%clk 0:03:00.1]} 1... Nf6 {[%clk 0:02:59.1]} 2. Nf3 {[%clk 0:02:59.8]}
2... g6 {[%clk 0:02:59.5]} 3. c4 {[%clk 0:03:00]} 3... Bg7 {[%clk 0:02:59.9]} 4.
Nc3 {[%clk 0:02:59.8]} 4... O-O {[%clk 0:03:00.8]} 5. e4 {[%clk 0:03:00]} 5...
d6 {[%clk 0:03:01.2]} 6. Be2 {[%clk 0:03:00.3]} 6... e5 {[%clk 0:03:01.2]} 7.
dxe5 {[%clk 0:03:00.6]} 7... dxe5 {[%clk 0:03:01.3]} 8. Qxd8 {[%clk 0:03:00.5]}
8... Rxd8 {[%clk 0:03:02.2]} 9. Bg5 {[%clk 0:03:00.7]} 9... Rf8 {[%clk
0:02:59.1]} 10. Nxe5 {[%clk 0:02:53.2]} 10... Nxe4 {[%clk 0:02:54]} 11. Nxe4
{[%clk 0:02:52.7]} 11... Bxe5 {[%clk 0:02:53.5]} 12. O-O-O {[%clk 0:02:48.2]}
12... Bf5 {[%clk 0:02:46.4]} 13. Be7 {[%clk 0:02:44.2]} 13... Re8 {[%clk
0:02:39.6]} 14. Nf6+ {[%clk 0:02:24.8]} 14... Bxf6 {[%clk 0:02:34.8]} 15. Bxf6
{[%clk 0:02:23.8]} 15... Nd7 {[%clk 0:02:35.2]} 16. Rxd7 {[%clk 0:02:13.3]}
16... Bxd7 {[%clk 0:02:36.1]} 17. Bf3 {[%clk 0:02:03.2]} 17... Bc6 {[%clk
0:02:30.5]} 18. Bxc6 {[%clk 0:02:02.1]} 18... bxc6 {[%clk 0:02:31.4]} 19. Rd1
{[%clk 0:01:55.9]} 19... Re6 {[%clk 0:02:26.9]} 20. Bc3 {[%clk 0:01:54.2]} 20...
Rd6 {[%clk 0:02:25.6]} 21. Re1 {[%clk 0:01:51.5]} 21... Rad8 {[%clk 0:02:21.4]}
22. Re7 {[%clk 0:01:49.1]} 22... R6d7 {[%clk 0:02:19.9]} 23. Re2 {[%clk
0:01:46.1]} 23... h6 {[%clk 0:02:05]} 24. Kc2 {[%clk 0:01:45.5]} 24... Kh7
{[%clk 0:02:00.1]} 25. Re5 {[%clk 0:01:43.6]} 25... Rd6 {[%clk 0:01:50]} 26. Ra5
{[%clk 0:01:41.4]} 26... Re8 {[%clk 0:01:47.6]} 27. Be5 {[%clk 0:01:32.9]} 27...
Rde6 {[%clk 0:01:43]} 28. f4 {[%clk 0:01:32.6]} 28... f6 {[%clk 0:01:41.2]} 29.
Bc3 {[%clk 0:01:23.4]} 29... Re2+ {[%clk 0:01:36.4]} 30. Kb3 {[%clk 0:01:23.2]}
30... Rxg2 {[%clk 0:01:31.9]} 31. Rxa7 {[%clk 0:01:23.1]} 31... Re7 {[%clk
0:01:31.5]} 32. Bxf6 {[%clk 0:01:17.4]} 32... Rf7 {[%clk 0:01:31.5]} 33. Be5
{[%clk 0:01:17.6]} 33... Rxh2 {[%clk 0:01:29.1]} 34. a4 {[%clk 0:01:15.6]} 34...
g5 {[%clk 0:01:23.3]} 35. fxg5 {[%clk 0:01:13]} 35... Rh3+ {[%clk 0:01:23.9]}
36. Kb4 {[%clk 0:01:11.6]} 36... hxg5 {[%clk 0:01:20.8]} 37. a5 {[%clk
0:01:11.5]} 37... g4 {[%clk 0:01:13]} 38. Rxc7 {[%clk 0:01:11.4]} 38... Rxc7
{[%clk 0:01:10.6]} 39. Bxc7 {[%clk 0:01:11.4]} 39... g3 {[%clk 0:01:04.6]} 40.
Bxg3 {[%clk 0:01:11.1]} 40... Rxg3 {[%clk 0:01:05.5]} 41. a6 {[%clk 0:01:10.8]}
41... Rg1 {[%clk 0:00:57.7]} 42. Ka5 {[%clk 0:01:06]} 42... Ra1+ {[%clk
0:00:50.4]} 43. Kb6 {[%clk 0:01:05.5]} 43... Rb1 {[%clk 0:00:44.4]} 44. a7
{[%clk 0:01:01.8]} 44... Rxb2+ {[%clk 0:00:44.5]} 45. Kxc6 {[%clk 0:01:02]}
45... Ra2 {[%clk 0:00:45]} 46. Kb7 {[%clk 0:01:02]} 46... Rb2+ {[%clk
0:00:45.6]} 47. Kc7 {[%clk 0:01:01.8]} 47... Ra2 {[%clk 0:00:45.1]} 48. Kb8
{[%clk 0:01:00.1]} 48... Rb2+ {[%clk 0:00:45.2]} 1/2-1/2

[Event "*** SCC Grand Prix: Titled Tuesday Blitz"]
[Site "Chess.com"]
[Date "2020.10.13"]
[Round "9"]
[White "Zq1"]
[Black "ftorodent"]
[Result "0-1"]
[WhiteElo "2514"]
[BlackElo "2676"]
[TimeControl "180+1"]
[EndTime "11:44:10 PDT"]
[Termination "ftorodent won by resignation"]

1. d4 {[%clk 0:03:00.9]} 1... d5 {[%clk 0:02:59.4]} 2. c4 {[%clk 0:03:01]} 2...
e6 {[%clk 0:02:59.6]} 3. Nc3 {[%clk 0:03:00.6]} 3... Be7 {[%clk 0:02:59.9]} 4.
Nf3 {[%clk 0:02:59.3]} 4... Nf6 {[%clk 0:02:59.3]} 5. g3 {[%clk 0:02:59.6]} 5...
O-O {[%clk 0:02:58.7]} 6. Bg2 {[%clk 0:02:59.6]} 6... dxc4 {[%clk 0:02:55.5]} 7.
Ne5 {[%clk 0:02:58.4]} 7... Nc6 {[%clk 0:02:55.6]} 8. Bxc6 {[%clk 0:02:57.5]}
8... bxc6 {[%clk 0:02:55.7]} 9. Nxc6 {[%clk 0:02:58.2]} 9... Qe8 {[%clk
0:02:55.9]} 10. Nxe7+ {[%clk 0:02:58.1]} 10... Qxe7 {[%clk 0:02:56.2]} 11. Qa4
{[%clk 0:02:58.4]} 11... c5 {[%clk 0:02:55.8]} 12. Qxc4 {[%clk 0:02:58.3]} 12...
cxd4 {[%clk 0:02:51.9]} 13. Qxd4 {[%clk 0:02:58.4]} 13... Rd8 {[%clk 0:02:50.3]}
14. Qh4 {[%clk 0:02:57.7]} 14... Bb7 {[%clk 0:02:38.1]} 15. O-O {[%clk
0:02:57.5]} 15... h6 {[%clk 0:02:00.5]} 16. Be3 {[%clk 0:02:53.5]} 16... Kh7
{[%clk 0:01:45.4]} 17. Rfd1 {[%clk 0:02:50.4]} 17... Bc6 {[%clk 0:01:42.7]} 18.
b3 {[%clk 0:02:41.8]} 18... Rab8 {[%clk 0:01:41.2]} 19. Rxd8 {[%clk 0:02:35.7]}
19... Rxd8 {[%clk 0:01:40.9]} 20. Rc1 {[%clk 0:02:25.6]} 20... Qa3 {[%clk
0:01:30]} 21. f3 {[%clk 0:02:14.1]} 21... Qb2 {[%clk 0:01:27.4]} 22. Kf2 {[%clk
0:02:11.9]} 22... Rc8 {[%clk 0:01:21.4]} 23. Nd1 {[%clk 0:02:01.1]} 23... Qxa2
{[%clk 0:00:52.3]} 24. Bxh6 {[%clk 0:02:00]} 24... Bxf3 {[%clk 0:00:36.7]} 25.
Be3+ {[%clk 0:01:47]} 25... Bh5 {[%clk 0:00:33.5]} 26. g4 {[%clk 0:00:50.3]}
26... Rxc1 {[%clk 0:00:31.1]} 27. Bxc1 {[%clk 0:00:46.1]} 27... Nxg4+ {[%clk
0:00:29.8]} 28. Ke1 {[%clk 0:00:40.6]} 28... Nf6 {[%clk 0:00:26.2]} 29. Qc4
{[%clk 0:00:29.8]} 29... Qa5+ {[%clk 0:00:20.4]} 30. Bd2 {[%clk 0:00:29.4]}
30... Qe5 {[%clk 0:00:20.3]} 31. Bf4 {[%clk 0:00:29]} 31... Qf5 {[%clk
0:00:20.1]} 32. Ne3 {[%clk 0:00:28.1]} 32... Qh3 {[%clk 0:00:20]} 33. Kd2 {[%clk
0:00:24.8]} 33... Bg6 {[%clk 0:00:19.2]} 34. Be5 {[%clk 0:00:15.2]} 34... Ne4+
{[%clk 0:00:18.4]} 0-1

[Event "*** SCC Grand Prix: Titled Tuesday Blitz"]
[Site "Chess.com"]
[Date "2020.10.13"]
[Round "9"]
[White "CheckThis4"]
[Black "HrvojeZagreb"]
[Result "1/2-1/2"]
[WhiteElo "2575"]
[BlackElo "2192"]
[TimeControl "180+1"]
[EndTime "11:44:10 PDT"]
[Termination "Game drawn by repetition"]

1. d4 {[%clk 0:03:00.9]} 1... e6 {[%clk 0:02:57.6]} 2. Nf3 {[%clk 0:02:59.1]}
2... f5 {[%clk 0:02:57.1]} 3. g3 {[%clk 0:02:50.2]} 3... Nf6 {[%clk 0:02:56.2]}
4. Bg2 {[%clk 0:02:50.7]} 4... Be7 {[%clk 0:02:56.5]} 5. O-O {[%clk 0:02:51.2]}
5... O-O {[%clk 0:02:56.6]} 6. c4 {[%clk 0:02:49.6]} 6... d6 {[%clk 0:02:55]} 7.
Nc3 {[%clk 0:02:48.5]} 7... Ne4 {[%clk 0:02:55.1]} 8. Nd2 {[%clk 0:02:40.4]}
8... Nxc3 {[%clk 0:02:54.2]} 9. bxc3 {[%clk 0:02:41.3]} 9... e5 {[%clk
0:02:51.3]} 10. Rb1 {[%clk 0:02:40.5]} 10... Nc6 {[%clk 0:02:46.4]} 11. e3
{[%clk 0:02:36]} 11... f4 {[%clk 0:02:13.4]} 12. exf4 {[%clk 0:02:18.2]} 12...
exf4 {[%clk 0:02:13.3]} 13. Bd5+ {[%clk 0:02:05.5]} 13... Kh8 {[%clk 0:02:11.6]}
14. Nf3 {[%clk 0:02:05.5]} 14... Bh3 {[%clk 0:01:31.3]} 15. Rxb7 {[%clk
0:01:54.6]} 15... Bxf1 {[%clk 0:01:08.1]} 16. Qxf1 {[%clk 0:01:46.9]} 16... Na5
{[%clk 0:01:04.6]} 17. Rb2 {[%clk 0:01:36.6]} 17... c6 {[%clk 0:01:03]} 18. Be4
{[%clk 0:01:34.8]} 18... d5 {[%clk 0:00:41.5]} 19. cxd5 {[%clk 0:01:30.3]} 19...
cxd5 {[%clk 0:00:42.4]} 20. Bd3 {[%clk 0:01:30.5]} 20... fxg3 {[%clk 0:00:42.3]}
21. fxg3 {[%clk 0:01:30.5]} 21... Nc4 {[%clk 0:00:36.1]} 22. Rf2 {[%clk
0:01:29.8]} 22... Bf6 {[%clk 0:00:32.5]} 23. Bxc4 {[%clk 0:01:18.2]} 23... dxc4
{[%clk 0:00:33.4]} 24. Qxc4 {[%clk 0:01:18.2]} 24... Rc8 {[%clk 0:00:33.4]} 25.
Qd3 {[%clk 0:01:18.2]} 25... Qa5 {[%clk 0:00:32.9]} 26. Bd2 {[%clk 0:01:10.1]}
26... Qxa2 {[%clk 0:00:31.9]} 27. Kg2 {[%clk 0:01:10.1]} 27... Qc4 {[%clk
0:00:31]} 28. Qe4 {[%clk 0:00:51.9]} 28... a5 {[%clk 0:00:27.6]} 29. h4 {[%clk
0:00:47.7]} 29... a4 {[%clk 0:00:26.8]} 30. Kh3 {[%clk 0:00:47.1]} 30... a3
{[%clk 0:00:26.7]} 31. Bg5 {[%clk 0:00:43.6]} 31... a2 {[%clk 0:00:24.5]} 32.
Bxf6 {[%clk 0:00:39.6]} 32... gxf6 {[%clk 0:00:23.8]} 33. Ng5 {[%clk 0:00:23.8]}
33... fxg5 {[%clk 0:00:20.9]} 34. Qe5+ {[%clk 0:00:24]} 34... Kg8 {[%clk
0:00:20.6]} 35. Qxg5+ {[%clk 0:00:24]} 35... Kh8 {[%clk 0:00:20.7]} 36. Qe5+
{[%clk 0:00:23.8]} 36... Kg8 {[%clk 0:00:21.1]} 37. Qg5+ {[%clk 0:00:23.4]}
37... Kh8 {[%clk 0:00:21]} 38. Qe5+ {[%clk 0:00:23.3]} 38... Kg8 {[%clk
0:00:19.7]} 39. Qg5+ {[%clk 0:00:23.1]} 1/2-1/2

[Event "*** SCC Grand Prix: Titled Tuesday Blitz"]
[Site "Chess.com"]
[Date "2020.10.13"]
[Round "9"]
[White "VladaSviridova"]
[Black "KyrgyzFighter"]
[Result "1-0"]
[WhiteElo "2264"]
[BlackElo "2363"]
[TimeControl "180+1"]
[EndTime "11:44:12 PDT"]
[Termination "VladaSviridova won by checkmate"]

1. d4 {[%clk 0:03:00.9]} 1... f5 {[%clk 0:02:58.5]} 2. c4 {[%clk 0:03:00.7]}
2... Nf6 {[%clk 0:02:58.6]} 3. Nf3 {[%clk 0:03:01]} 3... g6 {[%clk 0:02:59.1]}
4. g3 {[%clk 0:03:01.4]} 4... Bg7 {[%clk 0:02:59.7]} 5. Bg2 {[%clk 0:03:02.1]}
5... O-O {[%clk 0:03:00.4]} 6. O-O {[%clk 0:03:02.7]} 6... d6 {[%clk 0:03:01.3]}
7. Nc3 {[%clk 0:03:02.8]} 7... Qe8 {[%clk 0:03:01.4]} 8. d5 {[%clk 0:03:03.1]}
8... Na6 {[%clk 0:03:01.7]} 9. Rb1 {[%clk 0:03:01.2]} 9... c5 {[%clk 0:03:00.2]}
10. dxc6 {[%clk 0:02:59.2]} 10... bxc6 {[%clk 0:03:00.4]} 11. b4 {[%clk
0:02:50.4]} 11... Rb8 {[%clk 0:03:00]} 12. a3 {[%clk 0:02:49.4]} 12... h6 {[%clk
0:02:56.5]} 13. Bb2 {[%clk 0:02:29.7]} 13... g5 {[%clk 0:02:56.3]} 14. e3 {[%clk
0:02:27.1]} 14... Bb7 {[%clk 0:02:40.8]} 15. Nd4 {[%clk 0:02:21.2]} 15... Qc8
{[%clk 0:02:29.3]} 16. Qc2 {[%clk 0:02:16.6]} 16... f4 {[%clk 0:02:28.2]} 17.
exf4 {[%clk 0:02:11.3]} 17... gxf4 {[%clk 0:02:27.3]} 18. Qg6 {[%clk 0:02:01.5]}
18... Qe8 {[%clk 0:02:03.3]} 19. Qxe8 {[%clk 0:01:50.2]} 19... Nxe8 {[%clk
0:02:04.2]} 20. Ne6 {[%clk 0:01:46.1]} 20... f3 {[%clk 0:02:00.3]} 21. Bh3
{[%clk 0:01:39.2]} 21... Rf7 {[%clk 0:01:57.8]} 22. Nxg7 {[%clk 0:01:29.8]}
22... Nxg7 {[%clk 0:01:58.7]} 23. Ne4 {[%clk 0:01:17.7]} 23... c5 {[%clk
0:01:52.4]} 24. Nd2 {[%clk 0:01:17.4]} 24... cxb4 {[%clk 0:01:50.2]} 25. axb4
{[%clk 0:01:16.8]} 25... Bc8 {[%clk 0:01:47.6]} 26. Bxc8 {[%clk 0:01:12.7]}
26... Rxc8 {[%clk 0:01:48.5]} 27. b5 {[%clk 0:01:09.9]} 27... Nc5 {[%clk
0:01:48]} 28. Bd4 {[%clk 0:01:03.5]} 28... e5 {[%clk 0:01:44]} 29. Bxc5 {[%clk
0:01:02.7]} 29... Rxc5 {[%clk 0:01:44.7]} 30. Ne4 {[%clk 0:01:00.9]} 30... Rcc7
{[%clk 0:01:37.9]} 31. Nxd6 {[%clk 0:01:00.4]} 31... Rfd7 {[%clk 0:01:38.4]} 32.
Rfd1 {[%clk 0:00:58.1]} 32... Ne6 {[%clk 0:01:38.4]} 33. Rd5 {[%clk 0:00:53.2]}
33... Rxc4 {[%clk 0:01:30.3]} 34. Re1 {[%clk 0:00:30]} 34... Nd4 {[%clk
0:00:55]} 35. h4 {[%clk 0:00:23.3]} 35... Ne2+ {[%clk 0:00:54.6]} 36. Kh2 {[%clk
0:00:23.6]} 36... Rd4 {[%clk 0:00:54.7]} 37. Rxd4 {[%clk 0:00:20.8]} 37... exd4
{[%clk 0:00:55.6]} 38. Ne4 {[%clk 0:00:20.4]} 38... d3 {[%clk 0:00:54.6]} 39.
Nf6+ {[%clk 0:00:20.1]} 39... Kf7 {[%clk 0:00:52.7]} 40. Nxd7 {[%clk 0:00:20.2]}
40... Ke6 {[%clk 0:00:52.6]} 41. Nc5+ {[%clk 0:00:19.8]} 41... Kd5 {[%clk
0:00:53.5]} 42. Nxd3 {[%clk 0:00:20.2]} 42... Kc4 {[%clk 0:00:54.4]} 43. Nf4
{[%clk 0:00:20.3]} 43... Nxf4 {[%clk 0:00:53.6]} 44. gxf4 {[%clk 0:00:20.6]}
44... Kxb5 {[%clk 0:00:54.5]} 45. Ra1 {[%clk 0:00:20.9]} 45... a5 {[%clk
0:00:55.4]} 46. f5 {[%clk 0:00:21.2]} 46... a4 {[%clk 0:00:56.3]} 47. f6 {[%clk
0:00:21.6]} 47... a3 {[%clk 0:00:57.2]} 48. f7 {[%clk 0:00:22]} 48... a2 {[%clk
0:00:58.1]} 49. f8=Q {[%clk 0:00:22.4]} 49... Kc4 {[%clk 0:00:59]} 50. Rxa2
{[%clk 0:00:22.2]} 50... Kd3 {[%clk 0:00:59.9]} 51. Qxf3+ {[%clk 0:00:22.2]}
51... Kc4 {[%clk 0:01:00]} 52. Re2 {[%clk 0:00:22.5]} 52... Kb5 {[%clk
0:01:00.9]} 53. Re4 {[%clk 0:00:22.7]} 53... Kc6 {[%clk 0:01:01.8]} 54. Qf5
{[%clk 0:00:23.1]} 54... Kd6 {[%clk 0:01:01.9]} 55. Re6+ {[%clk 0:00:23.4]}
55... Kc7 {[%clk 0:01:02.8]} 56. Qf7+ {[%clk 0:00:23.7]} 56... Kd8 {[%clk
0:01:03.7]} 57. Re8# {[%clk 0:00:24.1]} 1-0